Cogmind - Beta 14 @@@ ROGUE MODE // 2024.10.22 @ 18:47:45 Player: Kate+Gabe4evr Result: Destroyed by Y-45 Defender with Beam Rifle Performance ------------- Evolutions (2) 1000 Regions Visited (3) 600 Robots Destroyed (13) 65 Value Destroyed (325) 325 Prototype IDs (11) 220 Alien Tech Used (0) 0 Bonus (0) 0 TOTAL SCORE: 2210 Bonus ------- None Cogmind --------- Core Integrity 0/550 Matter 289/300 Energy 99/100 System Corruption 0% Temperature Cool (9) Movement Core (150) Ox2 Location -8/Materials Parts ------- > --- POWER (1) -------- (None) > --- PROPULSION (4) --- (None) > --- UTILITY (4) ------ Small Storage Unit Structural Scanner > --- WEAPON (2) ------- Makeshift Axe > --- INVENTORY (8) ---- Light Ion Engine Subdweller Power Source Gun Armor Scrap Shield Subdweller Machine Gun Subdweller Machine Gun Subdweller Machine Gun Peak State ------------ > --- POWER ------------ Subdweller Power Source > --- PROPULSION ------- Aluminum Leg Subdweller Monowheel > --- UTILITY ---------- Small Storage Unit Structural Scanner > --- WEAPON ----------- Makeshift Laser Makeshift Axe > --- INVENTORY -------- Light Ion Engine Light Ion Engine Subdweller Power Source Light Assault Rifle Subdweller Machine Gun Subdweller Machine Gun Subdweller Machine Gun [Rating: 16] Favorites ----------- Power Subdweller Power Source Engine Subdweller Power Source Power Core Light Nuclear Core Propulsion Aluminum Leg Leg Aluminum Leg Wheel Subdweller Monowheel Utility Small Storage Unit Device Structural Scanner Storage Small Storage Unit Weapon Subdweller Machine Gun Energy Gun Makeshift Laser Ballistic Gun Subdweller Machine Gun Slashing Weapon Makeshift Axe Build | -11 -10 -10 -8 ------- Run | Yrd Mat Sub Mat Slots Evolved 4 | . . . 4 Power . | . . . . Propulsion 2 | . . . 2 Utility 2 | . . . 2 Weapon . | . . . . Parts Attached 25 | 6 1 14 4 Power 8 | 1 . 4 3 Engine 7 | 1 . 4 2 Core 1 | . . . 1 Reactor . | . . . . Propulsion 5 | 2 . 3 . Treads . | . . . . Leg 3 | 2 . 1 . Wheel 2 | . . 2 . Hover . | . . . . Flight . | . . . . Utility 2 | 1 1 . . Device 1 | . 1 . . Storage 1 | 1 . . . Processor . | . . . . Hackware . | . . . . Protection . | . . . . Artifact . | . . . . Weapon 10 | 2 . 7 1 Energy Gun 3 | 1 . 2 . Energy Cannon . | . . . . Ballistic Gun 6 | 1 . 4 1 Ballistic Cannon . | . . . . Launcher . | . . . . Special Weapon . | . . . . Impact Weapon . | . . . . Slashing Weapon 1 | . . 1 . Piercing Weapon . | . . . . Special Melee Weapon . | . . . . Unidentified Prototypes . | . . . . Parts Lost 9 | . . 3 6 Power 3 | . . . 3 Propulsion 3 | . . 2 1 Utility . | . . . . Weapon 3 | . . 1 2 Highest Loss Streak 2 | . . 1 2 To Critical Strikes 1 | . . . 1 Average Slot Usage (%) 89 | . 99 90 42 Engine 13 | . 14 13 5 Leg 15 | . 28 13 1 Wheel 4 | . . 6 . Device 13 | . 13 14 9 Storage 13 | . 14 14 9 Energy Gun 9 | . 14 9 6 Ballistic Gun 10 | . 14 10 1 Slashing Weapon 6 | . . 7 9 Peak Build Rating 16 | 6 7 16 15 Average Rating 11 | 4 6 12 11 On Entrance 6 | . 6 7 14 Naked Turns . | . . . . Heaviest Build 19 | 10 11 19 16 Greatest Support 40 | 20 20 40 10 Greatest Overweight (x) 6 | . . 6 5 Average Overweight (x) . | . . . 2 Largest Inventory Capacity 8 | 8 8 8 8 Average Capacity 7 | 6 8 8 8 Most Carried 8 | 1 1 8 8 Average Carried 5 | . 1 6 7 Final Capacity 8 | 8 8 8 8 Final Carried 8 | 1 1 7 8 Class Distribution -------------------- 77% | Mutant 22% | Scavenger-Mutant Dominant Class ---------------- Mutant | -10/Materials Mutant | -10/Subcaves Mutant | -8/Materials Resources | -11 -10 -10 -8 ----------- Run | Yrd Mat Sub Mat Matter Collected 545 | 139 112 265 29 Remotely . | . . . . Salvage Created 423 | . . 259 164 Parts 32 | . . 19 13 Haulers Intercepted . | . . . . Recyclers Shooed 1 | . . . 1 Parts Field Recycled . | . . . . Retrieved Matter . | . . . . Parts Self-Destructed 7 | . . 7 . Prevented . | . . . . Kills | -11 -10 -10 -8 ------- Run | Yrd Mat Sub Mat Combat Hostiles Destroyed 12 | . . 6 6 Melee 1 | . . . 1 Guns 11 | . . 6 5 Classes Destroyed 6 | . . 4 2 Mechanic 1 | . . . 1 Swarmer 6 | . . 1 5 Grunt 1 | . . . 1 Sentry 1 | . . 1 . Artisan 1 | . . 1 . Subdweller 4 | . . 4 . Best Kill Streak 3 | . . 3 3 Combat Bots Only 3 | . . 3 2 Max Kills in Single Turn 1 | . . 1 1 Gunslinging . | . . . . Exploded . | . . . . Melee 1 | . . . 1 Uniques/NPCs Destroyed . | . . . . Combat | -11 -10 -10 -8 -------- Run | Yrd Mat Sub Mat Hostile Shots Fired 186 | . . 49 137 Missed 49 | . . 13 36 Damage Taken 1640 | . . 633 1007 Core 713 | . . 157 556 Absorbed by Shields . | . . . . Core Remaining (%) 68 | 100 . 37 . Volleys Fired 98 | . . 57 41 Largest 2 | . . 2 1 Hottest 80 | . . 80 50 Shots Fired 136 | . . 95 41 Gun 136 | . . 95 41 Cannon . | . . . . Launcher . | . . . . Special . | . . . . Kinetic 91 | . . 76 15 Thermal 45 | . . 19 26 Explosive . | . . . . Electromagnetic . | . . . . Robot Hit Streak 10 | . . 8 10 Robot Miss Streak 7 | . . 5 7 Penetration Max . | . . . . Secondary Targets 1 | . . 1 . Max Gunslinging Chain 1 | . . 1 . Shots Hit Robots 69 | . . 41 28 Core Hits 26 | . . 16 10 Critical Kills . | . . . . Critical Parts Destroyed . | . . . . Critical Strikes 3 | . . . 3 Burn 3 | . . . 3 Melee Attacks 25 | . . 18 7 Impact . | . . . . Slashing 25 | . . 18 7 Piercing . | . . . . Sneak Attacks 2 | . . 1 1 Combat Hostiles . | . . . . Follow-up Attacks . | . . . . Damage Inflicted 1134 | . . 585 549 Guns 916 | . . 508 408 Cannons . | . . . . Explosions . | . . . . Melee 218 | . . 77 141 Ramming . | . . . . Kinetic 475 | . . 373 102 Thermal 441 | . . 135 306 Explosive . | . . . . Electromagnetic . | . . . . Impact . | . . . . Slashing 218 | . . 77 141 Piercing . | . . . . Highest Corruption . | . . . . Average Corruption . | . . . . Corruption Purged . | . . . . Corruption Blocked . | . . . . Overload Shots . | . . . . Overflow Damage 30 | . . . 30 Projectiles . | . . . . Explosions . | . . . . Melee 30 | . . . 30 Knockbacks . | . . . . Impact . | . . . . Kinetic . | . . . . Secondary . | . . . . Self-Inflicted Damage . | . . . . Shots . | . . . . Rammed . | . . . . Targets Rammed . | . . . . Kicked . | . . . . Crushed . | . . . . Highest Temperature 5 | . . . 5 Average Temperature 5 | . . . 5 Received Heat Transfer 234 | . . 54 180 Siege Activations . | . . . . Robots Corrupted . | . . . . Combat Hostiles . | . . . . Parts Fried . | . . . . Impact Corruptions . | . . . . Robots Melted . | . . . . Combat Hostiles . | . . . . Parts Melted 2 | . . . 2 Heat Transferred 1200 | . . 312 888 Parts Sabotaged . | . . . . Parts Stolen . | . . . . Parts Stripped . | . . . . Power Chain Reactions . | . . . . Alert | -11 -10 -10 -8 ------- Run | Yrd Mat Sub Mat Peak Influence 128 | . . . 128 Initial . | . . . . Average 12 | . . . 52 Maximum Alert Level . | . . . . Low Security (%) 100 | 100 100 . 100 Level 1 . | . . . . Level 2 . | . . . . Level 3 . | . . . . Level 4 . | . . . . Level 5 . | . . . . High Security . | . . . . Max Security . | . . . . Squads Dispatched 1 | . . . 1 Investigation . | . . . . Extermination . | . . . . Reinforcement 1 | . . . 1 Assault . | . . . . Garrison . | . . . . Intercept . | . . . . Searches Triggered . | . . . . Construction Impeded . | . . . . Haulers Reinforced . | . . . . Active Scanning Responses . | . . . . Cargo Convoy Interrupts . | . . . . Stealth | -11 -10 -10 -8 --------- Run | Yrd Mat Sub Mat Distress Signals 2 | . . . 2 Communications Jammed . | . . . . Distress Signals . | . . . . Times Spotted 19 | . . 8 11 Peak Tracking Total 5 | . . 3 5 Tactical Retreats 3 | . . 2 1 Traps | -11 -10 -10 -8 ------- Run | Yrd Mat Sub Mat Traps Triggered 1 | . . 1 . Indirectly . | . . . . Trap Hack Attempts . | . . . . Triggered . | . . . . Disarmed . | . . . . Reprogrammed . | . . . . Reused . | . . . . Traps Extracted . | . . . . Installed . | . . . . Triggered 7 | . . 7 . Machines | -11 -10 -10 -8 ---------- Run | Yrd Mat Sub Mat Machines Disabled 1 | . . 1 . Max in Single Turn 1 | . . 1 . Machines Repaired . | . . . . Machines Dismantled . | . . . . Machines Sabotaged . | . . . . Overloaded Fab Kills . | . . . . Hacking | -11 -10 -10 -8 --------- Run | Yrd Mat Sub Mat Machines Accessed 3 | . . 2 1 Terminals 1 | . . . 1 Fabricators . | . . . . Repair Stations . | . . . . Recycling Units . | . . . . Scanalyzers . | . . . . Garrison Access . | . . . . Total Hacks 15 | . . 13 2 Successful 14 | . . 13 1 Failed 1 | . . . 1 Catastrophic . | . . . . Database Lockouts . | . . . . Manual 2 | . . . 2 Terminals 2 | . . . 2 Fabricators . | . . . . Repair Stations . | . . . . Recycling Units . | . . . . Scanalyzers . | . . . . Garrison Access . | . . . . Terminal Hacks 14 | . . 13 1 Record 12 | . . 12 . Recall Investigation 1 | . . . 1 Derelict Proto ID Bank 1 | . . 1 . Fabricator Hacks . | . . . . Repair Station Hacks . | . . . . Recycling Unit Hacks . | . . . . Scanalyzer . | . . . . Garrison Access Hacks . | . . . . Unauthorized Hacks . | . . . . Terminals . | . . . . Fabricators . | . . . . Repair Stations . | . . . . Recycling Units . | . . . . Scanalyzers . | . . . . Garrison Access . | . . . . Data Cores Recovered . | . . . . Used . | . . . . Hacking Detections 1 | . . . 1 Full Trace Events . | . . . . Feedback Events . | . . . . Feedback Blocked . | . . . . Robot Schematics Acquired . | . . . . Robots Built . | . . . . Authchips . | . . . . Time . | . . . . Total Robot Build Rating . | . . . . Part Schematics Acquired . | . . . . Parts Built . | . . . . Authchips . | . . . . Time . | . . . . Total Part Build Rating . | . . . . Parts Repaired . | . . . . Time . | . . . . Parts Recycled . | . . . . Recycled Matter . | . . . . Retrieved Matter . | . . . . Retrieved Components . | . . . . Parts Scanalyzed . | . . . . Part Schematics Acquired . | . . . . Parts Damaged . | . . . . Bothacking | -11 -10 -10 -8 ------------ Run | Yrd Mat Sub Mat Used RIF Installer . | . . . . Robots Hacked . | . . . . Non-combat . | . . . . Combat . | . . . . Robot Hacks Applied . | . . . . Relay Couplers Released . | . . . . Fabnet Peak Effective % . | . . . . Robots Rewired . | . . . . Allies Hacked . | . . . . Hacks Repelled . | . . . . Allies | -11 -10 -10 -8 -------- Run | Yrd Mat Sub Mat Total Allies . | . . . . Largest Group . | . . . . Highest-Rated Group . | . . . . Highest-Rated Ally . | . . . . Total Orders . | . . . . Ally Attacks . | . . . . Total Damage . | . . . . Kills . | . . . . Allies Corrupted . | . . . . Allies Melted . | . . . . Intel | -11 -10 -10 -8 ------- Run | Yrd Mat Sub Mat Robot Analysis Total . | . . . . Derelict Logs Recovered 3 | . . 3 . Drone Launches . | . . . . Drone Recoveries . | . . . . Exploration | -11 -10 -10 -8 ------------- Run | Yrd Mat Sub Mat Turns Passed 4564 | 60 752 3510 242 Spaces Moved 2061 | 47 27 1922 65 Core 70 | 8 . 19 43 Treads . | . . . . Legs 1730 | 39 27 1642 22 Wheels 261 | . . 261 . Hover . | . . . . Flight . | . . . . Fastest Speed 50 | 50 120 110 150 Average Speed 169 | 108 120 170 208 Slowest Speed 350 | 120 120 350 300 Overloaded Moves . | . . . . Propulsion Burnouts . | . . . . Robots Hopped . | . . . . Cave-ins Triggered . | . . . . Exploration Rate (%) 28 | 3 7 95 9 Regions Visited 3 Branch Regions 1 Pre-discovered Areas 2 | . . 2 . Known Exits Taken . | . . . . Unknown Exits Taken 3 | 1 1 1 . Scrap Searched 4 | . . 4 . Spaces Dug 4 | . . 4 . Terrain Destroyed 4 | . . 4 . Melee 4 | . . 4 . Projectile . | . . . . AOE . | . . . . Terrain Rammed . | . . . . Walls Destroyed . | . . . . Machines Disabled . | . . . . Actions | -11 -10 -10 -8 --------- Run | Yrd Mat Sub Mat Total 2966 | 53 746 2042 125 Wait 740 | . 719 15 6 Move 2058 | 46 26 1921 65 Hop . | . . . . Pick Up 7 | 1 . 5 1 Fast Attach 16 | 6 1 6 3 Attach 3 | . . 3 . Detach 5 | . . 5 . Swap 6 | . . 5 1 Drop 8 | . . 7 1 Fire 98 | . . 57 41 Melee 25 | . . 18 7 Ram . | . . . . Kick . | . . . . Crush . | . . . . Escape Stasis . | . . . . Rewire . | . . . . Trap . | . . . . Miscellaneous . | . . . . Route ------- -11/Scrapyard -10/Materials -10/Subcaves (discovered 2 exits: *Mat x2) -8/Materials (discovered 1 exit: Fac) History --------- Turn | Location | Event 7 | -11/Scrapyard | Discovered new exit (range 15) 61 | -11/Scrapyard | Entered Materials 303 | -10/Materials | Build established: Mutant 380 | -10/Materials | Discovered new exit (range 4) 813 | -10/Materials | Entered Subcaves 823 | -10/Subcaves | Discovered new exit (range 8) 835 | -10/Subcaves | Learned location of Zion (-7) 835 | -10/Subcaves | Met a Zionite searching for "candidates" 869 | -10/Subcaves | Visited Clippyterm 872 | -10/Subcaves | Learned Factory stockpile data 1003 | -10/Subcaves | A swath of the cavern ceiling suddenly collapsed 1052 | -10/Subcaves | Learned location of Storage (-9) 1151 | -10/Subcaves | A swath of the cavern ceiling suddenly collapsed 1513 | -10/Subcaves | Build established: Scavenger-Mutant 1778 | -10/Subcaves | Learned location of 1 exit from Materials 1779 | -10/Subcaves | Shifting Twisted Machinery released Mak. Axe 2018 | -10/Subcaves | Discovered new exit (range 8) 2266 | -10/Subcaves | Core integrity fell below 50% 2491 | -10/Subcaves | Learned Materials emergency access door positions 2558 | -10/Subcaves | Build established: Mutant 2721 | -10/Subcaves | Visited 4L-MR0's lab 2738 | -10/Subcaves | Found Gun Armor 4323 | -10/Subcaves | Entered Materials 4323 | -8/Materials | Evolved 4 slots: Propulsion x2, Utility x2 4324 | -8/Materials | Identified exit to Factory 4519 | -8/Materials | Core integrity fell below 50% 4548 | -8/Materials | Core integrity fell below 20% 4565 | -8/Materials | Destroyed by Y-45 Defender with Beam Rifle Last Messages --------------- 04509_ R-06 Scavenger collects Lgt. Ion Engine. 04517_ Acquired 14 matter. 04520_ O-16 Technician: "IFF HANDSHAKE FAILED. SECURING TERMINAL." 04526_ ALERT: Hostiles spotted, dispatching reinforcements to Terminal M007. 04527_ Connecting with Terminal... 04527_ Current location identified: Materials >>Recall(Investigation) Establishing remote squad link... No tasked investigation squads found. 04531_ K-01 Serf collects debris. 04546_ G-47 Trooper destroyed. 04547_ K-01 Serf collects debris. 04550_ Lgt. Assault Rifle destroyed. 04551_ K-01 Serf collects debris. 04560_ Acquired Lgt. Nuclear Core. 04561_ Critical hit (Burn: +37). 04561_ Lgt. Nuclear Core destroyed. 04561_ K-01 Serf collects debris. [Achievement: This Is Interesting...] Map ----- +----------------------------------------------------+ | ?????????????????????????????????????????????????? | | ?????????????????????????????????????????????????? | | ?????????????????????????????????????????????????? | | ?????????????????????????????????########????????? | | ?????????????????????????????????############????? | | ?????????????????????????????????## ######????? | | ?????????????????????????????????##] # ##????? | | ?????????????????????????????????## # ##????? | | ?????????????????????????????????## # ##????? | | ?????????????????????????????????## + ##????? | | ?????????????????????????????????## # ##????? | | ?????????????????????????????????## # ##????? | | ?????????????????????????????????## % # ##????? | | ?????????????????????????????????## # ##????? | | ?????????????????????????????????##+#### ##????? | | ?????????????????????????????????##%#### ##????? | | ??????????????????????????? ?????##%#### ##????? | | ??????????????????????????? ?????## #### ##????? | | ?????????????????? ???????? ?????## #### ###???? | | ?????????????????? # """ ??## #### ###???? | | ?????????????????? ######+####### ### ##???? | | ?????????????????? ###### ##???? | | ?????????????????? ## ## ##???? | | ??????????????????? Y k ## ## ##???? | | ???????????????????????## [ %%=## ##??????????? | | ???????????????????????##@Ya k % ##??????????? | | ???????????????????????## == k = # ??????????? | | ??????????????????????? # k ^=%* # ??????????? | | ??????????????????????? # """ = # ??????????? | | ??????????????????????? # """ # ??????????? | | ??????????????????????? # ! """ # ??????????? | | ??????????????????????? ### """ # ??????????? | | ??????????????????????? ##T # ??????????? | | ????????????????????????### # ??????????? | | ????????????????????????### # ??????????? | | ?????????????????????????##^ ![[ ##??????????? | | ??????????+??????????????## ![[ ! ""??????????? | | ?????????????????????????## [[ T"??????????? | | ????????????????????????? # ""#?????????? | | ????????????????????????? # ###?????????? | | ????????????????????????? + ! ###?????????? | | ????????????????????????? # ##??????????? | | ????????????????????????? # ####+###??????????? | | ????????????????????????? # # #??????????? | | ??????????????????????????? # ????????????????? | | ??????????????????????????? # ????????????????? | | ??????????????????????????? + ????????????????? | | ?????????????????????????????????????????????????? | | ?????????????????????????????????????????????????? | | ?????????????????????????????????????????????????? | +----------------------------------------------------+ Best States ------------- Heat Dissipation 31 Energy Generation 15 Energy Capacity 200 Matter Stores 300 Matter Capacity 300 Sight Range 16 Terrain Scan Density 10 Evasion (%) 55 Item Schematics ----------------- None Robot Schematics ------------------ None Fabricated ------------ Nothing Alien Tech Used ----------------- None Achievements -------------- This Is Interesting... Challenges ------------ None Game ------ Seed ArmorHardcellChainsword Manual? 0 Play Time 00:20:26 Cumulative 43.0 hours Start 2024.10.22 @ 17:52:17 End 2024.10.22 @ 18:47:45 Sessions 1 Manual Loads 0 Difficulty Rogue Special Mode None Game No. 76 Rogue 76 Adventurer 0 Explorer 0 Win Type - Total 1 Types 1/0/0/0/0/0/0/0/0 Lore% 25 Gallery% 45 Achievement% 41 Wizard Run 0 Options --------- Layout 0 ASCII 0 Keyboard 1 Movement Numpad Keybinds 0 Fullscreen 2 Font 24/Terminus Map View 76x50 Zoom Use 0% Tactical HUD 1 Map Filters NONE Filters NONE Steam 1 RUN: 2aba1897-9bcc-4bb2-84d2-c3286af0f7d8